bitfinex/quotes_SOLUSD_20240930
["timestamp","ask_amount","ask_price","bid_price","bid_amount"]
[1727708996458,7.9781074,156.48,156.47,0.2648166]
[1727708996624,6.3902,156.49,156.47,0.2648166]
[1727708999554,7.9781074,156.48,156.47,0.2648166]
[1727708999723,6.3905,156.48,156.47,0.2648166]
[1727709001037,7.9781074,156.48,156.47,0.2648166]
[1727709001242,23.4586074,156.48,156.47,0.2648166]
[1727709001445,21.871,156.48,156.47,0.2648166]
[1727709003759,6.3927,156.43,156.39,6.3941]
[1727709004352,6.3927,156.43,156.38,22.3021]
[1727709004353,1.5876074,156.42,156.38,28.6967]
[1727709004563,6.3927,156.43,156.39,6.3941]
[1727709004763,31.4577,156.48,156.4,6.3936]
[1727709005056,6.3913,156.47,156.42,6.3926]
[1727709005433,6.3914,156.46,156.42,6.3926]
[1727709006049,6.3914,156.46,156.41,6.3933]
[1727709006050,1.5876074,156.45,156.41,6.3933]
[1727709006256,7.9795074,156.45,156.41,6.3933]
[1727709007040,6.3925,156.44,156.4,22.3778]
[1727709007249,7.9803074,156.43,156.39,6.3941]
[1727709007481,7.9803074,156.43,156.38,6.316]
[1727709007482,1.5876074,156.42,156.38,6.3946]
[1727709007758,6.393,156.42,156.38,6.3946]
[1727709008156,1.5876074,156.41,156.38,6.3946]
[1727709008335,7.9811074,156.41,156.37,22.382]
[1727709008540,6.3935,156.41,156.37,22.382]
[1727709008774,6.3943,156.39,156.34,29.0041]
[1727709009066,6.3939,156.4,156.35,6.3957]
[1727709009238,15.0273,156.41,156.37,6.3947]
[1727709009443,15.7794,156.45,156.37,1.27892063]
[1727709009649,6.3929,156.43,156.38,6.3945]
[1727709009863,6.3931,156.42,156.38,6.3945]
[1727709010554,6.3939,156.4,156.36,22.3832]
[1727709010738,31.7596,156.45,156.36,15.9879]
[1727709010739,6.3943,156.39,156.36,15.9879]
[1727709010944,6.3943,156.39,156.34,6.3959]
[1727709011176,6.3943,156.39,156.33,18.50680845]
[1727709012062,6.3943,156.39,156.35,6.3958]
[1727709013163,6.3938,156.4,156.35,6.3958]
[1727709013468,6.3945,156.39,156.34,6.3962]
[1727709013849,6.3945,156.39,156.35,6.3958]
[1727709014050,6.3939,156.4,156.35,6.3958]
[1727709014449,6.3939,156.4,156.36,6.3954]
[1727709014847,6.3939,156.4,156.34,1.27910106]
[1727709015045,6.3939,156.4,156.35,6.3958]
[1727709015268,1.5876074,156.44,156.33,17.2277327]
[1727709015441,6.3945,156.39,156.34,6.3962]
[1727709016255,6.3945,156.39,156.35,6.3959]
[1727709016849,6.3945,156.39,156.34,6.3962]
[1727709018167,1.5876074,156.38,156.34,6.3962]
[1727709019381,1.5876074,156.38,156.33,17.2277327]
[1727709019382,6.3959,156.35,156.33,1.2364327]
[1727709019669,6.3962,156.35,156.33,1.2364327]
[1727709019867,1.5876074,156.34,156.33,1.2364327]
[1727709020055,1.5876074,156.38,156.33,1.2364327]
[1727709021059,6.3963,156.34,156.33,1.2364327]
[1727709021261,22.9893,156.34,156.33,1.2364327]
[1727709022571,16.593,156.34,156.33,1.2364327]
[1727709022771,15.3557,156.38,156.33,1.2364327]
[1727709022976,15.3557,156.38,156.36,6.3954]
[1727709023182,15.3557,156.42,156.35,15.9891]
[1727709023470,7.9810074,156.41,156.36,6.3953]
[1727709024163,6.3934,156.41,156.36,6.3953]
[1727709024360,1.5876074,156.4,156.36,6.3953]
[1727709024567,6.3934,156.41,156.36,6.3953]
[1727709024873,1.5876074,156.4,156.36,6.3953]
[1727709026187,1.5876074,156.4,156.35,15.9891]
[1727709026188,7.9815074,156.4,156.35,22.3849]
[1727709026379,6.3943,156.39,156.35,15.9891]
[1727709026569,1.5876074,156.38,156.35,15.9891]
[1727709027651,15.3557,156.42,156.35,22.3848]
[1727709027652,6.3939,156.4,156.35,22.3848]
[1727709027875,1.5876074,156.39,156.35,22.3848]
[1727709028374,7.9819074,156.39,156.35,15.9891]
[1727709029073,1.5876074,156.38,156.35,15.9891]
[1727709029786,15.3557,156.42,156.35,17.26825814]
[1727709030078,17.12349611,156.46,156.37,15.9869]
[1727709030251,17.12349611,156.46,156.39,6.394]
[1727709030252,6.3926,156.43,156.39,6.394]
[1727709030457,1.5876074,156.42,156.37,15.9869]
[1727709030682,1.5876074,156.42,156.38,6.3946]
[1727709030852,6.3926,156.43,156.38,6.3946]
[1727709031188,16.0192,156.46,156.38,1.27886358]
[1727709031676,6.3911,156.47,156.41,15.983]
[1727709031876,7.9790074,156.46,156.41,15.983]
[1727709032066,1.5876074,156.45,156.41,15.983]
[1727709032249,7.9794074,156.45,156.41,22.3763]
[1727709032452,1.5876074,156.44,156.41,22.3763]
[1727709032649,15.9882,156.5,156.43,15.9808]
[1727709032848,15.9882,156.5,156.39,31.9703]
[1727709032849,15.9882,156.5,156.46,6.3912]
[1727709033375,1.5876074,156.49,156.45,22.3704]
[1727709033559,22.378,156.5,156.45,22.3704]
[1727709034273,7.9779074,156.49,156.42,15.9824]
[1727709034474,7.9779074,156.49,156.43,6.3925]
[1727709034682,15.9882,156.5,156.42,15.9824]
[1727709034854,15.9882,156.5,156.45,6.3917]
[1727709035053,15.9882,156.5,156.46,6.3913]
[1727709035253,15.9882,156.5,156.45,6.3917]
[1727709035454,15.9882,156.5,156.44,15.9796]
[1727709035671,7.9778074,156.49,156.44,22.3717]
[1727709036360,6.3915,156.46,156.41,15.9834]
[1727709036583,15.9882,156.5,156.33,22.8507905]
[1727709036584,7.9798074,156.45,156.4,6.3937]
[1727709036875,1.5876074,156.44,156.4,6.3937]
[1727709037178,7.9799074,156.44,156.38,22.3808]
[1727709037362,1.5876074,156.43,156.38,22.3808]
[1727709038963,1.5876074,156.43,156.38,15.9865]
[1727709039266,6.3935,156.41,156.36,6.3954]
[1727709039472,1.5876074,156.4,156.36,6.3954]
[1727709040088,6.3935,156.41,156.36,6.3954]
[1727709040387,6.393,156.43,156.38,6.3946]
[1727709040884,6.3923,156.44,156.39,6.3941]
[1727709041267,6.3918,156.45,156.4,6.3935]
[1727709041790,6.3918,156.45,156.41,6.3933]
[1727709041986,7.9799074,156.44,156.39,15.9849]
[1727709042769,1.5876074,156.44,156.39,22.379]
[1727709043082,6.3926,156.43,156.39,22.379]
[1727709045285,1.5876074,156.42,156.38,6.3945]
[1727709045486,6.3931,156.42,156.38,6.3945]
[1727709045672,1.5876074,156.46,156.36,15.9881]
[1727709045673,7.9810074,156.41,156.36,15.9881]
[1727709045870,7.9818074,156.4,156.37,30.0]
[1727709046090,6.3942,156.4,156.37,30.0]
[1727709046595,6.3939,156.4,156.36,22.3834]
[1727709046897,16.1609,156.47,156.39,6.3941]
[1727709046898,33.7265074,156.47,156.39,6.3941]
[1727709047268,6.3925,156.44,156.39,6.3941]
[1727709047468,7.9803074,156.43,156.39,6.3941]
[1727709047693,6.3927,156.43,156.39,6.3941]
[1727709047892,6.3927,156.43,156.38,15.986]
[1727709048075,6.3927,156.43,156.38,22.3805]
[1727709048387,6.3927,156.43,156.39,6.3942]
[1727709048976,1.5876074,156.42,156.39,6.3942]
[1727709049969,6.3927,156.43,156.39,6.3942]
[1727709050782,1.5876074,156.42,156.39,6.3942]
[1727709051376,7.9803074,156.43,156.39,6.3942]
[1727709051577,6.3927,156.43,156.39,6.3942]
[1727709051779,7.9807074,156.42,156.38,22.3806]
[1727709052097,6.3931,156.42,156.38,22.3806]
[1727709052996,6.3927,156.43,156.38,22.3806]
[1727709053198,32.1389,156.47,156.38,22.3806]
[1727709053199,6.3923,156.44,156.39,7.67285154]
[1727709053385,6.3923,156.44,156.39,6.3941]
[1727709053593,32.1389,156.47,156.39,6.3941]
[1727709053594,6.3926,156.43,156.39,6.3941]
[1727709054196,6.3926,156.43,156.38,15.986]
[1727709054384,7.9807074,156.42,156.38,22.3805]
[1727709054594,6.3935,156.41,156.38,15.986]
[1727709056581,6.3935,156.41,156.37,6.395]
[1727709056802,7.9814074,156.4,156.36,6.3954]
[1727709057002,7.9819074,156.39,156.35,15.9891]
[1727709057501,7.9819074,156.39,156.35,22.3849]
[1727709057798,6.3946,156.38,156.35,15.9891]
[1727709058004,6.3944,156.39,156.35,15.9891]
[1727709058382,7.9823074,156.38,156.35,15.9891]
[1727709058692,6.3955,156.36,156.32,22.3898]
[1727709059011,38.233,156.41,156.25,15.4669]
[1727709059012,22.8246,156.34,156.25,15.4669]
[1727709059300,22.8246,156.34,156.29,22.3935]
[1727709059484,16.4283,156.34,156.3,6.3978]
[1727709059887,16.0145,156.4,156.3,1.27949682]
[1727709060088,16.0145,156.4,156.31,15.993]
[1727709060282,16.0145,156.4,156.33,17.2274327]
[1727709060500,16.0145,156.4,156.34,1.27902531]
[1727709060710,16.0145,156.4,156.37,6.395]
[1727709060925,16.0145,156.4,156.35,15.9888]
[1727709061210,17.6021074,156.4,156.36,6.3954]
[1727709061392,23.9960074,156.4,156.35,22.3846]
[1727709061797,15.543,156.44,156.36,1.27898371]
[1727709061995,21.9356,156.44,156.39,6.3942]
[1727709062304,15.543,156.44,156.37,15.9868]
[1727709063207,21.9352,156.44,156.39,6.3941]
[1727709063415,15.543,156.44,156.37,15.9868]
[1727709063599,15.7524,156.48,156.4,15.9846]
[1727709063786,15.7524,156.48,156.41,1.27855371]
[1727709063992,15.7524,156.48,156.4,15.9846]
[1727709064414,6.391,156.47,156.42,6.393]
[1727709064600,15.7524,156.48,156.43,1.27846585]
[1727709064908,15.7524,156.48,156.44,6.3921]
[1727709066103,22.1431,156.48,156.43,6.3925]
[1727709067506,6.3898,156.5,156.45,6.3914]
[1727709067718,15.1568,156.52,156.44,17.25795035]
[1727709067719,21.546,156.52,156.46,6.3912]
[1727709067904,21.546,156.52,156.47,6.3908]
[1727709068602,7.9769074,156.51,156.46,6.3913]
[1727709069694,1.5876074,156.51,156.44,15.9796]
[1727709070102,6.3905,156.49,156.44,22.3717]
[1727709070590,7.9782074,156.48,156.44,15.9796]
[1727709070806,6.3906,156.48,156.44,15.9796]
[1727709070986,6.3895,156.51,156.47,6.3908]
[1727709071193,15.1568,156.52,156.47,6.3908]
[1727709071607,21.5458,156.52,156.48,6.3904]
[1727709072712,6.3885,156.53,156.48,6.3904]
[1727709073307,7.9766074,156.52,156.48,6.3904]
[1727709073611,6.389,156.52,156.48,6.3904]
[1727709076420,32.2142,156.56,156.48,6.3904]
[1727709076606,6.3886,156.53,156.48,6.3904]
[1727709077115,7.9766074,156.52,156.48,6.3904]
[1727709077320,6.389,156.52,156.48,6.3904]
[1727709077503,6.3901,156.5,156.46,15.9779]
[1727709077698,1.5876074,156.49,156.46,15.9779]
[1727709077896,6.3909,156.48,156.43,15.9812]
[1727709078106,6.3909,156.48,156.43,22.3737]
[1727709079009,7.9786074,156.47,156.43,22.3737]
[1727709079225,6.391,156.47,156.43,22.3737]
[1727709080223,6.3906,156.48,156.44,7.67039727]
[1727709080601,6.3906,156.48,156.44,6.3921]
[1727709081323,6.3906,156.48,156.43,22.3736]
[1727709084123,6.3906,156.48,156.44,7.67049073]
[1727709084310,15.9728,156.52,156.44,7.67049073]
[1727709084615,6.3902,156.49,156.45,6.3917]
[1727709087723,15.97,156.55,156.47,6.3907]
[1727709087907,15.97,156.55,156.48,7.66852717]
[1727709088120,6.3888,156.53,156.48,6.3905]
[1727709088301,6.3888,156.53,156.49,1.27789416]
[1727709088725,6.3888,156.53,156.48,6.3905]
[1727709090401,15.97,156.55,156.48,6.3905]
[1727709090615,6.3891,156.52,156.48,6.3905]
[1727709092519,6.3898,156.5,156.46,6.3913]
[1727709092828,6.3902,156.49,156.45,6.3916]
[1727709093006,17.5576074,156.55,156.45,6.3916]
[1727709093331,6.3899,156.5,156.45,6.3916]
[1727709093621,6.3906,156.48,156.45,1.27809801]
[1727709093804,15.9718,156.53,156.44,15.9797]
[1727709095228,6.3899,156.5,156.46,6.3913]
[1727709095403,6.3899,156.5,156.47,1.27808688]
[1727709095603,15.9718,156.53,156.47,1.27808688]
[1727709095604,6.3894,156.51,156.47,7.66898688]
[1727709096613,6.389,156.52,156.48,7.66854682]
[1727709096812,6.389,156.52,156.48,6.3905]
[1727709097327,1.10617601,156.56,156.49,1.27791596]
[1727709097508,15.6482,156.6,156.49,1.27791596]
[1727709097708,15.6482,156.6,156.52,15.9717]
[1727709097913,22.034,156.6,156.55,6.3877]
[1727709098413,22.034,156.6,156.55,7.66508623]
[1727709098614,22.034,156.6,156.55,6.3877]
[1727709098815,15.6482,156.6,156.48,6.5252]
[1727709099031,15.9658,156.59,156.5,22.3637]
[1727709099335,6.3878,156.55,156.5,22.3637]
[1727709099718,15.6482,156.6,156.5,15.9741]
[1727709099909,15.6482,156.6,156.52,15.9717]
[1727709100433,15.3121,156.64,156.54,15.9694]
[1727709100625,15.3121,156.64,156.55,6.1343]
[1727709100809,7.9724074,156.63,156.57,6.3865]
[1727709101015,6.385,156.62,156.57,6.3865]
[1727709101217,7.9729074,156.61,156.55,12.5217]
[1727709101413,1.5876074,156.6,156.55,12.5217]
[1727709101611,1.5876074,156.6,156.56,6.3872]
[1727709102913,7.9733074,156.6,156.55,12.5219]
[1727709103122,6.3857,156.6,156.55,12.5219]
[1727709104834,6.3852,156.61,156.56,6.3872]
[1727709105017,6.3849,156.62,156.57,6.3868]
[1727709105220,7.9729074,156.61,156.56,6.3872]
[1727709105417,6.3853,156.61,156.56,6.3872]
[1727709107226,7.9734074,156.6,156.55,12.5219]
[1727709107431,6.3858,156.6,156.55,12.5219]
[1727709109643,15.3121,156.64,156.56,17.24495953]
[1727709109942,6.3852,156.62,156.57,6.3869]
[1727709110135,6.3845,156.63,156.58,6.3863]
[1727709110335,7.9725074,156.62,156.58,6.3863]
[1727709110714,7.9725074,156.62,156.57,6.3867]
[1727709111324,6.3857,156.6,156.56,22.3549]
[1727709113831,15.3121,156.64,156.56,23.63214989]
[1727709114042,6.385,156.62,156.57,1.27715641]
[1727709114339,15.3121,156.64,156.58,6.3861]
[1727709114340,6.3845,156.63,156.58,6.3861]
[1727709114543,6.2134,156.69,156.61,6.3852]
[1727709114544,6.3837,156.65,156.61,6.3852]
[1727709116845,6.3837,156.65,156.6,22.3492]
[1727709117220,1.5876074,156.64,156.59,6.386]
[1727709117417,6.385,156.62,156.57,15.9667]
[1727709117643,6.3853,156.61,156.57,22.3534]
[1727709120628,6.3858,156.6,156.57,15.9667]
[1727709120828,6.3858,156.6,156.56,6.3872]
[1727709121027,6.3861,156.59,156.55,6.1343]
[1727709121334,15.9594,156.65,156.55,6.1343]
[1727709121541,6.3854,156.61,156.57,6.3869]
[1727709122040,1.5876074,156.64,156.56,22.3552]
[1727709122237,15.2939,156.62,156.53,15.971]
[1727709122428,1.5876074,156.61,156.53,15.971]
[1727709122625,6.3866,156.58,156.54,6.3878]
[1727709123036,6.3861,156.59,156.55,6.3876]
[1727709123246,6.3857,156.6,156.56,6.3872]
[1727709123544,6.3855,156.61,156.56,7.66448129]
[1727709123775,6.3858,156.6,156.56,6.3872]
[1727709124644,6.3858,156.6,156.56,7.66448522]
[1727709124847,6.3853,156.61,156.57,6.3869]
[1727709125144,6.3861,156.59,156.55,22.3563]
[1727709125726,6.3858,156.6,156.55,22.3563]
[1727709126846,7.9739074,156.59,156.55,15.9689]
[1727709127146,6.3863,156.59,156.55,15.9689]
[1727709127322,1.5876074,156.58,156.52,31.7376]
[1727709127525,6.3876,156.56,156.52,15.9719]
[1727709127838,6.3876,156.56,156.52,22.3607]
[1727709128047,1.5876074,156.59,156.52,15.9719]
[1727709128239,6.3857,156.6,156.56,6.3872]
[1727709128446,6.3857,156.6,156.54,15.9697]
[1727709128638,15.2939,156.62,156.56,6.3872]
[1727709128946,6.3856,156.61,156.56,6.3872]
[1727709129135,6.3856,156.61,156.57,6.3868]
[1727709129539,6.3856,156.61,156.57,6.3867]
[1727709129946,6.3842,156.64,156.58,17.24303039]
[1727709130153,6.3837,156.65,156.58,23.73743039]
[1727709130455,15.9136,156.66,156.58,23.73743039]
[1727709130456,6.3832,156.66,156.61,6.3849]
[1727709130661,6.3832,156.66,156.62,1.27683381]
[1727709132031,6.3832,156.66,156.61,6.3849]
[1727709132351,6.3832,156.66,156.62,1.27683606]
[1727709132534,15.9557,156.69,156.62,1.27683606]
[1727709132730,6.3836,156.65,156.61,6.3849]
[1727709134454,6.3841,156.64,156.6,15.9633]
[1727709135042,6.3845,156.63,156.58,12.8807]
[1727709135763,6.3845,156.63,156.59,6.386]
[1727709138942,6.385,156.62,156.58,12.8808]
[1727709139150,6.385,156.62,156.58,6.4944]
[1727709139654,6.385,156.62,156.57,22.3538]
[1727709139955,6.385,156.62,156.58,6.3864]
[1727709140267,6.3858,156.6,156.55,4.17858462]
[1727709140760,6.3858,156.6,156.54,70.3983]
[1727709140960,6.3861,156.59,156.54,22.6156]
[1727709141545,1.5876074,156.64,156.54,22.6156]
[1727709141740,6.3866,156.58,156.54,22.3576]
[1727709142761,6.3866,156.58,156.54,15.9696]
[1727709143152,1.5876074,156.57,156.52,6.3888]
[1727709143353,1.5876074,156.59,156.52,6.3888]
[1727709143662,6.387,156.57,156.52,6.3888]
[1727709144348,15.2135,156.6,156.53,1.27751341]
[1727709144552,15.2135,156.6,156.56,6.387]
[1727709144755,15.2135,156.6,156.56,7.66429622]
[1727709145075,15.2135,156.6,156.56,6.387]
[1727709145249,23.1869074,156.6,156.56,6.387]
[1727709145454,23.1869074,156.6,156.55,22.3563]
[1727709146059,16.6062,156.64,156.57,6.3867]
[1727709146272,6.3855,156.61,156.56,10.57873235]
[1727709146644,16.6062,156.64,156.58,6.3863]
[1727709146960,6.3845,156.63,156.58,6.3863]
[1727709147157,6.3849,156.62,156.58,6.3863]
[1727709147550,6.3849,156.62,156.57,15.9668]
[1727709147759,6.3849,156.62,156.57,22.3533]
[1727709148743,1.5876074,156.63,156.57,22.3533]
[1727709148952,6.3853,156.61,156.57,22.3533]
[1727709149269,7.9733074,156.6,156.56,4.19504801]
[1727709149468,6.3857,156.6,156.55,10.58264801]
[1727709149648,6.3857,156.6,156.56,4.19504801]
[1727709150042,1.5876074,156.63,156.55,10.58264801]
[1727709150243,6.3861,156.59,156.55,10.58264801]
[1727709150440,16.6062,156.64,156.54,15.9697]
[1727709150441,16.6062,156.64,156.59,6.3859]
[1727709150658,22.9906,156.64,156.59,6.386]
[1727709150840,22.9906,156.64,156.6,1.27699756]
[1727709151261,22.9906,156.64,156.59,10.58268038]
[1727709151572,22.9906,156.64,156.59,6.386]
[1727709151782,6.3845,156.63,156.59,6.386]
[1727709153270,6.3845,156.63,156.6,4.19781082]
[1727709153850,6.3845,156.63,156.6,5.47480871]
[1727709154075,6.3841,156.64,156.6,11.86040871]
[1727709154348,6.3841,156.64,156.6,7.66259789]
[1727709154552,16.6379,156.68,156.61,4.19851154]
[1727709154850,16.6379,156.68,156.6,17.24079789]
[1727709154851,6.3828,156.67,156.62,11.85959506]
[1727709155055,6.3828,156.67,156.63,6.3844]
[1727709155370,6.3825,156.68,156.64,7.66064508]
[1727709155578,16.1042,156.72,156.64,17.23624508]
[1727709155757,6.3816,156.7,156.66,6.3829]
[1727709155959,6.3824,156.68,156.64,22.3434]
[1727709156451,6.3821,156.69,156.65,6.3836]
[1727709156769,6.3821,156.69,156.65,7.66015549]
[1727709156968,16.1042,156.72,156.65,1.27655549]
[1727709157154,6.3817,156.7,156.64,15.9595]
[1727709157355,1.5876074,156.69,156.65,6.3833]
[1727709157557,16.1042,156.72,156.66,1.27649898]
[1727709157866,6.3813,156.71,156.67,6.3828]
[1727709158070,6.3809,156.72,156.67,6.3828]
[1727709158767,6.3809,156.72,156.66,15.9576]
[1727709158768,6.3809,156.72,156.68,6.3822]
[1727709158977,6.3796,156.75,156.7,6.3813]
[1727709159169,15.5331,156.76,156.71,1.27610247]
[1727709159367,21.9123,156.76,156.71,6.3811]
[1727709159756,6.3796,156.75,156.71,6.3811]
[1727709160074,6.3796,156.75,156.7,6.3816]
[1727709160267,6.3796,156.75,156.71,1.27608171]
[1727709160466,6.3796,156.75,156.71,7.65718171]
[1727709160973,6.3796,156.75,156.71,1.27608171]
[1727709161449,15.4179,156.8,156.71,1.27608171]
[1727709161653,6.3783,156.79,156.74,6.3799]
[1727709161868,6.3783,156.79,156.75,1.27576962]
[1727709162088,6.3776,156.8,156.75,7.65526962]
[1727709162768,6.3776,156.8,156.76,0.96422222]
[1727709163960,6.3776,156.8,156.75,6.3795]
[1727709164158,6.378,156.79,156.74,6.3799]
[1727709166156,6.378,156.79,156.75,6.3795]
[1727709166867,6.378,156.79,156.75,13.0333]
[1727709167293,15.9408,156.83,156.75,13.0333]
[1727709167581,6.3776,156.8,156.75,13.0333]
[1727709167881,6.3776,156.8,156.76,1.27564396]
[1727709168072,6.3776,156.8,156.75,13.0333]
[1727709168277,1.5876074,156.82,156.75,13.0333]
[1727709168454,6.3784,156.78,156.74,15.9491]
[1727709168653,6.378,156.79,156.74,22.3289]
[1727709168883,6.378,156.79,156.75,1.27567447]
[1727709169176,6.378,156.79,156.75,7.65507447]
[1727709169376,6.378,156.79,156.75,6.3794]
[1727709169983,6.378,156.79,156.74,22.3289]
[1727709170167,6.3783,156.78,156.74,15.9491]
[1727709171270,6.3788,156.77,156.72,6.3807]
[1727709171589,6.3788,156.77,156.71,22.6041]
[1727709171880,6.3791,156.76,156.72,6.3807]
[1727709172466,6.3796,156.75,156.71,15.9528]
[1727709172669,6.3796,156.75,156.71,22.3339]
[1727709173584,6.3796,156.75,156.72,1.27594585]
[1727709173976,6.3796,156.75,156.71,22.3339]
[1727709174177,6.3796,156.75,156.72,1.2760029]
[1727709174379,6.3796,156.75,156.71,22.3339]
[1727709174675,6.3796,156.75,156.72,1.27600278]
[1727709174874,6.3796,156.75,156.71,22.3339]
[1727709175795,6.3792,156.76,156.71,22.3339]
[1727709179076,6.3799,156.74,156.7,6.3815]
[1727709180480,1.5876074,156.78,156.7,6.3815]
[1727709180680,6.3791,156.77,156.72,6.3807]
[1727709180884,6.3791,156.77,156.69,15.9509]
[1727709180885,15.9424,156.82,156.73,1.27587457]
[1727709181184,6.3776,156.8,156.75,6.3792]
[1727709181501,6.3776,156.8,156.76,7.65471648]
[1727709181791,15.6773,156.84,156.77,6.3787]
[1727709182103,6.3767,156.82,156.78,7.65375735]
[1727709182679,6.3767,156.82,156.78,1.27545735]
[1727709184592,16.99290625,156.88,156.78,1.27545735]
[1727709184773,6.3754,156.86,156.81,6.377]
[1727709184971,15.884278,156.88,156.82,1.27513796]
[1727709185181,7.222078,156.88,156.83,6.3763]
[1727709185376,0.847778,156.88,156.81,6.3159]
[1727709185680,6.3747,156.87,156.82,6.3767]
[1727709185983,0.847778,156.88,156.84,6.3758]
[1727709186191,0.847778,156.88,156.85,1.27496216]
[1727709186774,7.222078,156.88,156.83,22.3169]
[1727709190271,0.847778,156.88,156.81,21.8258]
[1727709190478,6.3751,156.86,156.82,6.3766]
[1727709190891,6.3747,156.87,156.82,6.3766]
[1727709193176,7.222078,156.88,156.83,7.65102408]
[1727709193593,0.847778,156.88,156.84,1.27493633]
[1727709193782,0.847778,156.88,156.85,6.3754]
[1727709194089,7.222278,156.88,156.83,6.3759]
[1727709195588,0.847778,156.88,156.82,15.9412]
[1727709195790,6.3748,156.87,156.82,22.3177]
[1727709196191,6.3754,156.86,156.82,15.9412]
[1727709196379,6.3756,156.85,156.81,6.3159]
[1727709196587,6.3766,156.83,156.79,15.9442]
[1727709196785,6.3768,156.82,156.78,6.3782]
[1727709197599,6.3768,156.82,156.77,28.704]
[1727709198606,1.5876074,156.84,156.77,6.6096]
[1727709198904,6.3775,156.81,156.76,22.3263]
[1727709200007,1.5876074,156.84,156.76,22.3263]
[1727709200008,6.3776,156.8,156.76,15.9473]
[1727709201503,6.3788,156.77,156.73,28.3898]
[1727709202208,6.3784,156.78,156.73,28.3898]
[1727709202806,6.3787,156.77,156.73,15.9506]
[1727709202983,6.3791,156.76,156.72,6.3807]
[1727709203384,6.3788,156.77,156.72,6.3807]
[1727709204595,1.5876074,156.8,156.72,6.3807]
[1727709204788,6.3791,156.76,156.72,6.3807]
[1727709204984,15.3336,156.79,156.71,4.16809452]
[1727709205199,1.5876074,156.78,156.7,22.3351]
[1727709205409,31.2789,156.79,156.7,22.3351]
[1727709206200,6.38,156.74,156.7,22.3351]
[1727709206403,6.38,156.74,156.7,15.9536]
[1727709206598,6.38,156.74,156.7,22.3351]
[1727709206805,6.3796,156.75,156.7,22.3351]
[1727709207183,6.3796,156.75,156.71,1.27598267]
[1727709207383,15.3336,156.79,156.72,6.3804]
[1727709207602,6.3783,156.78,156.72,15.9512]
[1727709207808,6.3789,156.77,156.72,15.9512]
[1727709208613,6.3788,156.77,156.72,22.3318]
[1727709208987,15.3336,156.79,156.72,15.9512]
[1727709209185,15.5121,156.83,156.74,15.9495]
[1727709209386,6.3774,156.81,156.76,6.3788]
[1727709209587,6.3774,156.81,156.77,0.96404541]
[1727709209798,15.5121,156.83,156.76,15.9473]
[1727709210009,21.8887,156.83,156.78,6.378]
[1727709210213,21.8887,156.83,156.79,1.27539786]
[1727709210411,16.2976,156.87,156.79,1.27539786]
[1727709210611,6.3759,156.84,156.78,22.3231]
[1727709210810,6.3759,156.84,156.79,7.65310686]
[1727709211111,6.3759,156.84,156.79,6.3778]
[1727709211301,6.3759,156.84,156.8,1.2753201]
[1727709211700,6.3759,156.84,156.79,6.3778]
[1727709212411,6.3764,156.83,156.79,6.3778]
[1727709212600,6.3764,156.83,156.78,22.3234]
[1727709212803,6.3764,156.83,156.79,7.65316461]
[1727709213021,6.3759,156.85,156.79,1.27536461]
[1727709213316,6.3759,156.85,156.8,6.3774]
[1727709214233,6.3759,156.84,156.8,6.3774]
[1727709214825,6.3759,156.84,156.78,15.9452]
[1727709215118,6.3763,156.83,156.79,6.3779]
[1727709215713,6.3763,156.83,156.78,15.9452]
[1727709215897,6.3763,156.83,156.78,22.3234]
[1727709216098,6.3772,156.81,156.77,12.7657]
[1727709216297,6.3775,156.8,156.76,6.379]
[1727709216909,1.5876074,156.86,156.75,22.3279]
[1727709217109,6.378,156.79,156.75,15.9484]
[1727709219213,6.3784,156.78,156.75,15.9484]